[Event "Late-Titled-Tuesday-Blitz-September-12-2023"]
[Site "Chess.com"]
[Date "2023.09.12"]
[Round "8"]
[White "rdarruda"]
[Black "egnfanclub"]
[Result "0-1"]
[WhiteElo "2506"]
[BlackElo "2344"]
[TimeControl "180+1"]
[EndTime "15:17:39 PDT"]
[Termination "egnfanclub won by resignation"]

1. d4 {[%clk 0:02:46]} 1... d5 {[%clk 0:02:59.4]} 2. Nf3 {[%clk 0:02:44.4]} 2...
Nf6 {[%clk 0:02:58.9]} 3. c4 {[%clk 0:02:43.6]} 3... c6 {[%clk 0:02:59]} 4. Nc3
{[%clk 0:02:42.7]} 4... e6 {[%clk 0:02:58.5]} 5. e3 {[%clk 0:02:40.3]} 5... Nbd7
{[%clk 0:02:58]} 6. Bd3 {[%clk 0:02:40.9]} 6... dxc4 {[%clk 0:02:57.8]} 7. Bxc4
{[%clk 0:02:40.5]} 7... b5 {[%clk 0:02:58.7]} 8. Bd3 {[%clk 0:02:39.2]} 8... a6
{[%clk 0:02:59.3]} 9. O-O {[%clk 0:02:38.7]} 9... c5 {[%clk 0:02:59.5]} 10. e4
{[%clk 0:02:37.3]} 10... cxd4 {[%clk 0:02:53.8]} 11. Nxd4 {[%clk 0:02:36.5]}
11... Ne5 {[%clk 0:02:47.3]} 12. Bc2 {[%clk 0:02:31.9]} 12... Bb7 {[%clk
0:02:43.4]} 13. Qe2 {[%clk 0:02:30.2]} 13... Qxd4 {[%clk 0:02:39.2]} 0-1

[Event "Late-Titled-Tuesday-Blitz-September-12-2023"]
[Site "Chess.com"]
[Date "2023.09.12"]
[Round "8"]
[White "IMSlavin"]
[Black "nevermind242"]
[Result "1-0"]
[WhiteElo "2235"]
[BlackElo "2345"]
[TimeControl "180+1"]
[EndTime "15:18:32 PDT"]
[Termination "IMSlavin won by checkmate"]

1. e4 {[%clk 0:02:59.3]} 1... e6 {[%clk 0:03:00]} 2. Nf3 {[%clk 0:02:59]} 2...
d5 {[%clk 0:03:00.9]} 3. e5 {[%clk 0:02:59.5]} 3... c5 {[%clk 0:03:01.1]} 4. b4
{[%clk 0:02:59.9]} 4... d4 {[%clk 0:03:02]} 5. bxc5 {[%clk 0:02:59.8]} 5... Bxc5
{[%clk 0:03:02.9]} 6. Bc4 {[%clk 0:02:58.9]} 6... Nc6 {[%clk 0:03:02.4]} 7. O-O
{[%clk 0:02:58.6]} 7... Nge7 {[%clk 0:03:02.7]} 8. Re1 {[%clk 0:02:58.4]} 8...
Ng6 {[%clk 0:03:03]} 9. d3 {[%clk 0:02:58.7]} 9... O-O {[%clk 0:03:02]} 10. a4
{[%clk 0:02:58.4]} 10... Qc7 {[%clk 0:03:02.2]} 11. Nbd2 {[%clk 0:02:58.1]}
11... Ncxe5 {[%clk 0:02:59.7]} 12. Nxe5 {[%clk 0:02:57.9]} 12... Nxe5 {[%clk
0:03:00]} 13. Bb3 {[%clk 0:02:58.4]} 13... Ng6 {[%clk 0:02:55]} 14. Ne4 {[%clk
0:02:55.1]} 14... e5 {[%clk 0:02:53.8]} 15. Nxc5 {[%clk 0:02:52.2]} 15... Qxc5
{[%clk 0:02:53]} 16. Ba3 {[%clk 0:02:53.1]} 16... Qc6 {[%clk 0:02:49.6]} 17.
Bxf8 {[%clk 0:02:53.8]} 17... Kxf8 {[%clk 0:02:49.6]} 18. Qh5 {[%clk 0:02:12]}
18... Nf4 {[%clk 0:02:22.4]} 19. Qxf7# {[%clk 0:02:10.1]} 1-0

[Event "Late-Titled-Tuesday-Blitz-September-12-2023"]
[Site "Chess.com"]
[Date "2023.09.12"]
[Round "8"]
[White "Mackster23"]
[Black "CarlosjPineror"]
[Result "0-1"]
[WhiteElo "2536"]
[BlackElo "2450"]
[TimeControl "180+1"]
[EndTime "15:18:53 PDT"]
[Termination "CarlosjPineror won by resignation"]

1. e4 {[%clk 0:03:00.9]} 1... c5 {[%clk 0:02:59.9]} 2. Nf3 {[%clk 0:03:00]} 2...
e6 {[%clk 0:03:00]} 3. d4 {[%clk 0:02:59.5]} 3... cxd4 {[%clk 0:03:00.9]} 4.
Nxd4 {[%clk 0:03:00.1]} 4... a6 {[%clk 0:03:01.3]} 5. Bd3 {[%clk 0:02:59.4]}
5... Qc7 {[%clk 0:03:01.5]} 6. O-O {[%clk 0:02:58.8]} 6... Nf6 {[%clk
0:03:01.7]} 7. Qe2 {[%clk 0:02:58.7]} 7... h5 {[%clk 0:03:01]} 8. Nd2 {[%clk
0:02:29.2]} 8... Ng4 {[%clk 0:03:00.6]} 9. N2f3 {[%clk 0:02:28.1]} 9... Bc5
{[%clk 0:03:00.6]} 10. c3 {[%clk 0:02:24.2]} 10... Nc6 {[%clk 0:03:00.6]} 11.
Bg5 {[%clk 0:02:04.8]} 11... Bxd4 {[%clk 0:02:55.1]} 12. h3 {[%clk 0:01:48.2]}
12... Ba7 {[%clk 0:02:48.9]} 13. hxg4 {[%clk 0:01:45.2]} 13... hxg4 {[%clk
0:02:49.8]} 14. Nh4 {[%clk 0:01:45.4]} 14... f6 {[%clk 0:02:44.2]} 15. Qxg4
{[%clk 0:01:33.3]} 15... Ne5 {[%clk 0:02:44]} 16. Qg3 {[%clk 0:01:32.7]} 16...
fxg5 {[%clk 0:02:43.1]} 17. Ng6 {[%clk 0:01:32.4]} 17... Nf3+ {[%clk 0:02:39]}
0-1

[Event "Late-Titled-Tuesday-Blitz-September-12-2023"]
[Site "Chess.com"]
[Date "2023.09.12"]
[Round "8"]
[White "Dr_crypt"]
[Black "cukin84"]
[Result "1-0"]
[WhiteElo "2424"]
[BlackElo "2238"]
[TimeControl "180+1"]
[EndTime "15:19:09 PDT"]
[Termination "Dr_crypt won by resignation"]

1. d4 {[%clk 0:02:58.1]} 1... f5 {[%clk 0:02:59.4]} 2. Nf3 {[%clk 0:02:57.2]}
2... Nf6 {[%clk 0:02:59]} 3. Bg5 {[%clk 0:02:57.3]} 3... g6 {[%clk 0:02:57.8]}
4. Bxf6 {[%clk 0:02:57.1]} 4... exf6 {[%clk 0:02:57.9]} 5. Nbd2 {[%clk 0:02:55]}
5... d5 {[%clk 0:02:57]} 6. e3 {[%clk 0:02:52.6]} 6... Bd6 {[%clk 0:02:55.8]} 7.
g3 {[%clk 0:02:52.9]} 7... O-O {[%clk 0:02:54.8]} 8. Bg2 {[%clk 0:02:53.2]} 8...
c6 {[%clk 0:02:47.3]} 9. O-O {[%clk 0:02:52.8]} 9... Na6 {[%clk 0:02:47.1]} 10.
c4 {[%clk 0:02:52.3]} 10... dxc4 {[%clk 0:02:45.2]} 11. Nxc4 {[%clk 0:02:52.1]}
11... Nc7 {[%clk 0:02:44.5]} 12. Nxd6 {[%clk 0:02:51.3]} 12... Qxd6 {[%clk
0:02:42.5]} 13. Nd2 {[%clk 0:02:49.9]} 13... Be6 {[%clk 0:02:41.8]} 14. Qc2
{[%clk 0:02:46]} 14... Rae8 {[%clk 0:02:37.8]} 15. Nc4 {[%clk 0:02:38.8]} 15...
Bxc4 {[%clk 0:02:33.8]} 16. Qxc4+ {[%clk 0:02:38.3]} 16... Kh8 {[%clk 0:02:34]}
17. Rac1 {[%clk 0:02:34.3]} 17... g5 {[%clk 0:02:32.8]} 18. Qc5 {[%clk
0:02:33.2]} 18... Rd8 {[%clk 0:02:23.4]} 19. Qxa7 {[%clk 0:02:24.7]} 19... Ra8
{[%clk 0:02:22.4]} 20. Qxb7 {[%clk 0:02:23.7]} 20... Rxa2 {[%clk 0:02:16.4]} 21.
Rxc6 {[%clk 0:02:22.1]} 21... Qd8 {[%clk 0:01:42.6]} 22. Rxc7 {[%clk 0:02:20.6]}
1-0

[Event "Late-Titled-Tuesday-Blitz-September-12-2023"]
[Site "Chess.com"]
[Date "2023.09.12"]
[Round "8"]
[White "Casper"]
[Black "Mikhail_Golubev"]
[Result "0-1"]
[WhiteElo "2474"]
[BlackElo "2598"]
[TimeControl "180+1"]
[EndTime "15:19:18 PDT"]
[Termination "Mikhail_Golubev won by resignation"]

1. e4 {[%clk 0:03:00.9]} 1... c5 {[%clk 0:02:59.8]} 2. d4 {[%clk 0:03:01]} 2...
cxd4 {[%clk 0:02:59]} 3. Qxd4 {[%clk 0:03:01.9]} 3... Nc6 {[%clk 0:02:58.7]} 4.
Qe3 {[%clk 0:03:02.5]} 4... g6 {[%clk 0:02:57.2]} 5. Nc3 {[%clk 0:03:02.3]} 5...
Bg7 {[%clk 0:02:52.7]} 6. Bd2 {[%clk 0:03:02.9]} 6... Nf6 {[%clk 0:02:51.2]} 7.
O-O-O {[%clk 0:03:03.6]} 7... O-O {[%clk 0:02:49.1]} 8. h3 {[%clk 0:02:57.3]}
8... d5 {[%clk 0:02:46.4]} 9. exd5 {[%clk 0:02:57]} 9... Nxd5 {[%clk 0:02:46.4]}
10. Nxd5 {[%clk 0:02:56.9]} 10... Qxd5 {[%clk 0:02:46.1]} 11. Kb1 {[%clk
0:02:46.2]} 11... Be6 {[%clk 0:02:32.1]} 12. Qa3 {[%clk 0:02:33]} 12... Nb4
{[%clk 0:02:15.2]} 13. b3 {[%clk 0:02:16.8]} 13... Nxc2 {[%clk 0:02:08.7]} 14.
Kxc2 {[%clk 0:02:16.2]} 14... Bf5+ {[%clk 0:02:04.1]} 15. Kc1 {[%clk 0:02:14.2]}
15... Qe4 {[%clk 0:01:39.6]} 0-1

[Event "Late-Titled-Tuesday-Blitz-September-12-2023"]
[Site "Chess.com"]
[Date "2023.09.12"]
[Round "8"]
[White "drdaro"]
[Black "temus_galaktionov"]
[Result "0-1"]
[WhiteElo "2307"]
[BlackElo "2824"]
[TimeControl "180+1"]
[EndTime "15:19:20 PDT"]
[Termination "temus_galaktionov won by resignation"]

1. e4 {[%clk 0:02:59.6]} 1... c6 {[%clk 0:03:00.9]} 2. d4 {[%clk 0:02:59.1]}
2... g6 {[%clk 0:03:01.8]} 3. Nc3 {[%clk 0:02:58.5]} 3... d6 {[%clk 0:03:02.2]}
4. f4 {[%clk 0:02:58.2]} 4... Bg7 {[%clk 0:03:02.9]} 5. Nf3 {[%clk 0:02:57.1]}
5... Nd7 {[%clk 0:03:03]} 6. Be3 {[%clk 0:02:57.1]} 6... e5 {[%clk 0:03:03.6]}
7. dxe5 {[%clk 0:02:45.6]} 7... dxe5 {[%clk 0:03:04.5]} 8. fxe5 {[%clk
0:02:40.2]} 8... Nxe5 {[%clk 0:03:05.4]} 9. Qxd8+ {[%clk 0:02:40.5]} 9... Kxd8
{[%clk 0:03:06.3]} 10. O-O-O+ {[%clk 0:02:41.2]} 10... Ke8 {[%clk 0:03:06.9]}
11. Bd4 {[%clk 0:02:23.9]} 11... f6 {[%clk 0:03:06.4]} 12. Bxe5 {[%clk
0:01:58.2]} 12... fxe5 {[%clk 0:03:07.3]} 13. Bc4 {[%clk 0:01:59.1]} 13... Bg4
{[%clk 0:03:05.3]} 14. Rd3 {[%clk 0:01:41]} 14... Bxf3 {[%clk 0:02:59.9]} 15.
Rxf3 {[%clk 0:01:40.2]} 15... Nf6 {[%clk 0:03:00.5]} 16. Rhf1 {[%clk 0:01:18.3]}
16... Rf8 {[%clk 0:02:59.9]} 17. h3 {[%clk 0:01:14.2]} 17... Rd8 {[%clk
0:02:59.3]} 18. Rd1 {[%clk 0:01:13]} 18... Bh6+ {[%clk 0:02:58.7]} 19. Kb1
{[%clk 0:01:11.7]} 19... Rxd1+ {[%clk 0:02:58.7]} 20. Nxd1 {[%clk 0:01:12.6]}
20... Nxe4 {[%clk 0:02:56]} 21. Rxf8+ {[%clk 0:01:11.8]} 21... Kxf8 {[%clk
0:02:56.9]} 22. c3 {[%clk 0:01:04.5]} 22... Nd2+ {[%clk 0:02:56.5]} 0-1

[Event "Late-Titled-Tuesday-Blitz-September-12-2023"]
[Site "Chess.com"]
[Date "2023.09.12"]
[Round "8"]
[White "pirulillo"]
[Black "canary2016"]
[Result "1-0"]
[WhiteElo "2329"]
[BlackElo "2101"]
[TimeControl "180+1"]
[EndTime "15:20:14 PDT"]
[Termination "pirulillo won by resignation"]

1. e4 {[%clk 0:03:00.9]} 1... c5 {[%clk 0:02:59.1]} 2. Nf3 {[%clk 0:03:00.6]}
2... d6 {[%clk 0:02:57]} 3. d4 {[%clk 0:03:00.2]} 3... cxd4 {[%clk 0:02:57.5]}
4. Nxd4 {[%clk 0:03:01]} 4... Nf6 {[%clk 0:02:57.4]} 5. Nc3 {[%clk 0:03:01.7]}
5... Nc6 {[%clk 0:02:58.1]} 6. Be2 {[%clk 0:03:01.4]} 6... e6 {[%clk 0:02:55]}
7. O-O {[%clk 0:03:00.7]} 7... Be7 {[%clk 0:02:55]} 8. Be3 {[%clk 0:03:01.3]}
8... O-O {[%clk 0:02:54.9]} 9. f4 {[%clk 0:03:02]} 9... Qc7 {[%clk 0:02:50.8]}
10. Qe1 {[%clk 0:03:02]} 10... a6 {[%clk 0:02:35.6]} 11. Kh1 {[%clk 0:03:00.7]}
11... b6 {[%clk 0:02:34.5]} 12. Qg3 {[%clk 0:02:59.8]} 12... Bb7 {[%clk
0:02:33.2]} 13. Bd3 {[%clk 0:02:57.1]} 13... Rac8 {[%clk 0:01:58.6]} 14. Rae1
{[%clk 0:02:54]} 14... e5 {[%clk 0:01:50.8]} 15. Nf5 {[%clk 0:02:49.3]} 15... g6
{[%clk 0:01:44.8]} 16. fxe5 {[%clk 0:02:44.8]} 16... Nxe5 {[%clk 0:01:41.7]} 17.
Nxe7+ {[%clk 0:02:39.7]} 17... Qxe7 {[%clk 0:01:40.7]} 18. Bg5 {[%clk
0:02:35.6]} 18... Nxe4 {[%clk 0:00:24.7]} 19. Nxe4 {[%clk 0:02:25.9]} 19... Qd7
{[%clk 0:00:22.9]} 20. Nf6+ {[%clk 0:02:25]} 1-0

[Event "Late-Titled-Tuesday-Blitz-September-12-2023"]
[Site "Chess.com"]
[Date "2023.09.12"]
[Round "8"]
[White "enestnrvrd"]
[Black "Djager97"]
[Result "0-1"]
[WhiteElo "2705"]
[BlackElo "2550"]
[TimeControl "180+1"]
[EndTime "15:21:51 PDT"]
[Termination "Djager97 won by checkmate"]

1. Nf3 {[%clk 0:02:57.9]} 1... d5 {[%clk 0:02:59.9]} 2. d4 {[%clk 0:02:56.9]}
2... Nf6 {[%clk 0:03:00]} 3. c4 {[%clk 0:02:57.8]} 3... e6 {[%clk 0:02:59.4]} 4.
Nc3 {[%clk 0:02:58.3]} 4... c6 {[%clk 0:02:58.3]} 5. Bg5 {[%clk 0:02:55.4]} 5...
Nbd7 {[%clk 0:02:53.8]} 6. e3 {[%clk 0:02:55.6]} 6... Qa5 {[%clk 0:02:54.4]} 7.
Nd2 {[%clk 0:02:50.3]} 7... Bb4 {[%clk 0:02:53.6]} 8. Qc2 {[%clk 0:02:49.7]}
8... dxc4 {[%clk 0:02:52.5]} 9. Bxf6 {[%clk 0:02:49.1]} 9... Nxf6 {[%clk
0:02:53.4]} 10. Nxc4 {[%clk 0:02:49.6]} 10... Qc7 {[%clk 0:02:54]} 11. g3 {[%clk
0:02:49.3]} 11... c5 {[%clk 0:02:47.5]} 12. Bg2 {[%clk 0:02:42]} 12... O-O
{[%clk 0:02:33.9]} 13. O-O {[%clk 0:02:40.2]} 13... Bd7 {[%clk 0:02:25.8]} 14.
a3 {[%clk 0:02:34.9]} 14... cxd4 {[%clk 0:02:21]} 15. axb4 {[%clk 0:02:30]}
15... Qxc4 {[%clk 0:02:02.5]} 16. exd4 {[%clk 0:02:29.7]} 16... Bc6 {[%clk
0:02:01.5]} 17. Bxc6 {[%clk 0:02:28.8]} 17... bxc6 {[%clk 0:02:02]} 18. Ra4
{[%clk 0:02:19]} 18... Qxd4 {[%clk 0:01:55.4]} 19. Rfa1 {[%clk 0:02:16.4]} 19...
Qb6 {[%clk 0:01:43]} 20. Ra6 {[%clk 0:02:14.1]} 20... Qxb4 {[%clk 0:01:41.8]}
21. Rxc6 {[%clk 0:02:14.4]} 21... a5 {[%clk 0:01:35.5]} 22. Ra4 {[%clk
0:02:13.2]} 22... Qb7 {[%clk 0:01:32.6]} 23. Rc5 {[%clk 0:02:09.5]} 23... Qb6
{[%clk 0:01:11]} 24. Rb5 {[%clk 0:02:07.7]} 24... Qc7 {[%clk 0:01:11.4]} 25. Rh4
{[%clk 0:02:06]} 25... h6 {[%clk 0:01:08.9]} 26. Qc1 {[%clk 0:02:04]} 26... Rfb8
{[%clk 0:01:03.1]} 27. Qf1 {[%clk 0:01:40.8]} 27... Rxb5 {[%clk 0:01:01.3]} 28.
Nxb5 {[%clk 0:01:39.4]} 28... Qc2 {[%clk 0:00:59.4]} 29. Qa1 {[%clk 0:01:33.9]}
29... Rd8 {[%clk 0:00:55.6]} 30. Qxa5 {[%clk 0:01:30.9]} 30... Rd1+ {[%clk
0:00:54.3]} 31. Kg2 {[%clk 0:01:31]} 31... Qc6+ {[%clk 0:00:54.8]} 32. Kh3
{[%clk 0:01:27.2]} 32... Rd5 {[%clk 0:00:29.6]} 33. Nd4 {[%clk 0:01:26.1]} 33...
Qc1 {[%clk 0:00:30.1]} 34. Qa8+ {[%clk 0:01:22.3]} 34... Kh7 {[%clk 0:00:29]}
35. Qa3 {[%clk 0:01:18.8]} 35... Qf1# {[%clk 0:00:28]} 0-1

[Event "Late-Titled-Tuesday-Blitz-September-12-2023"]
[Site "Chess.com"]
[Date "2023.09.12"]
[Round "8"]
[White "emirgulbeyaz"]
[Black "YEIKO2017"]
[Result "0-1"]
[WhiteElo "2352"]
[BlackElo "2534"]
[TimeControl "180+1"]
[EndTime "15:21:57 PDT"]
[Termination "YEIKO2017 won by resignation"]

1. d4 {[%clk 0:02:56.3]} 1... Nf6 {[%clk 0:02:58.8]} 2. Bf4 {[%clk 0:02:56.7]}
2... g6 {[%clk 0:02:58.4]} 3. Nc3 {[%clk 0:02:56]} 3... d5 {[%clk 0:02:57.3]} 4.
e3 {[%clk 0:02:51.6]} 4... Bg7 {[%clk 0:02:57.6]} 5. h4 {[%clk 0:02:46.4]} 5...
c5 {[%clk 0:02:52.5]} 6. Nf3 {[%clk 0:02:45.6]} 6... Nc6 {[%clk 0:02:45.9]} 7.
Nb5 {[%clk 0:02:44.6]} 7... O-O {[%clk 0:02:45.7]} 8. c3 {[%clk 0:02:41.2]} 8...
Bg4 {[%clk 0:02:43]} 9. Be2 {[%clk 0:02:40.6]} 9... a6 {[%clk 0:02:40.1]} 10.
Na3 {[%clk 0:02:39.6]} 10... c4 {[%clk 0:02:34.2]} 11. Ne5 {[%clk 0:02:39.5]}
11... Bxe2 {[%clk 0:02:32.2]} 12. Qxe2 {[%clk 0:02:40.4]} 12... Nxe5 {[%clk
0:02:30.1]} 13. Bxe5 {[%clk 0:02:41.3]} 13... b5 {[%clk 0:02:28.4]} 14. Nc2
{[%clk 0:02:40.8]} 14... a5 {[%clk 0:02:26]} 15. Bxf6 {[%clk 0:02:33]} 15...
exf6 {[%clk 0:02:21.3]} 16. O-O {[%clk 0:02:28.5]} 16... f5 {[%clk 0:02:21.7]}
17. g3 {[%clk 0:02:26.3]} 17... Re8 {[%clk 0:02:18.7]} 18. Qf3 {[%clk
0:02:26.8]} 18... Qd6 {[%clk 0:02:16.5]} 19. Ne1 {[%clk 0:02:27]} 19... b4
{[%clk 0:02:15.2]} 20. Ng2 {[%clk 0:02:27.3]} 20... Rab8 {[%clk 0:02:06.7]} 21.
Nf4 {[%clk 0:02:27.4]} 21... Red8 {[%clk 0:01:59.8]} 22. Rab1 {[%clk 0:02:27.3]}
22... h5 {[%clk 0:01:54]} 23. Rfc1 {[%clk 0:02:24.6]} 23... Rb5 {[%clk
0:01:51.5]} 24. b3 {[%clk 0:02:22.1]} 24... bxc3 {[%clk 0:01:47.6]} 25. bxc4
{[%clk 0:02:00.3]} 25... Rxb1 {[%clk 0:01:46.4]} 26. Rxb1 {[%clk 0:02:01.2]}
26... Qa3 {[%clk 0:01:41.5]} 27. Qe2 {[%clk 0:02:00]} 27... dxc4 {[%clk
0:01:27.1]} 28. Qc2 {[%clk 0:01:55.8]} 28... Bf8 {[%clk 0:01:08.8]} 29. Ne2
{[%clk 0:01:40.5]} 29... Bb4 {[%clk 0:01:04.7]} 30. Rc1 {[%clk 0:01:40.1]} 30...
Rc8 {[%clk 0:00:59.1]} 31. Nxc3 {[%clk 0:01:39.8]} 31... Bxc3 {[%clk 0:00:58.9]}
32. Qxc3 {[%clk 0:01:40.7]} 32... Qxc3 {[%clk 0:00:56]} 33. Rxc3 {[%clk
0:01:40.6]} 33... Kf8 {[%clk 0:00:56.1]} 34. f3 {[%clk 0:01:39.8]} 34... Ke7
{[%clk 0:00:56.4]} 35. Kf2 {[%clk 0:01:39.7]} 35... Kd6 {[%clk 0:00:55.8]} 36.
e4 {[%clk 0:01:40.3]} 36... fxe4 {[%clk 0:00:55.4]} 37. fxe4 {[%clk 0:01:41.2]}
37... f5 {[%clk 0:00:55.7]} 38. Ke3 {[%clk 0:01:40.3]} 38... fxe4 {[%clk
0:00:53.7]} 39. Kxe4 {[%clk 0:01:41.2]} 39... Re8+ {[%clk 0:00:53.6]} 40. Kf4
{[%clk 0:01:41.3]} 40... Kd5 {[%clk 0:00:54.2]} 41. Kg5 {[%clk 0:01:34.3]} 41...
Kxd4 {[%clk 0:00:54.6]} 42. Rc1 {[%clk 0:01:34.9]} 42... Re6 {[%clk 0:00:53.5]}
43. Rd1+ {[%clk 0:01:24.4]} 43... Kc5 {[%clk 0:00:49.5]} 44. a3 {[%clk
0:01:23.6]} 44... c3 {[%clk 0:00:48.9]} 45. Rd8 {[%clk 0:01:24.5]} 45... c2
{[%clk 0:00:48]} 46. Rc8+ {[%clk 0:01:24.8]} 46... Rc6 {[%clk 0:00:48]} 47.
Rxc6+ {[%clk 0:01:25.7]} 47... Kxc6 {[%clk 0:00:48.1]} 0-1

[Event "Late-Titled-Tuesday-Blitz-September-12-2023"]
[Site "Chess.com"]
[Date "2023.09.12"]
[Round "8"]
[White "WilliamAlfaroCaracas"]
[Black "FuenfgegenWilly"]
[Result "1-0"]
[WhiteElo "2289"]
[BlackElo "2361"]
[TimeControl "180+1"]
[EndTime "15:21:57 PDT"]
[Termination "WilliamAlfaroCaracas won by checkmate"]

1. e4 {[%clk 0:03:00.9]} 1... e5 {[%clk 0:02:58.8]} 2. Nf3 {[%clk 0:03:01.3]}
2... Nc6 {[%clk 0:02:59.4]} 3. Nc3 {[%clk 0:02:59.1]} 3... Nf6 {[%clk
0:02:58.6]} 4. h3 {[%clk 0:02:59.5]} 4... h6 {[%clk 0:02:50.5]} 5. Bb5 {[%clk
0:02:58.8]} 5... Bd6 {[%clk 0:02:49.6]} 6. O-O {[%clk 0:02:54.2]} 6... Nb8
{[%clk 0:02:48.5]} 7. d4 {[%clk 0:02:50.5]} 7... Qe7 {[%clk 0:02:47.7]} 8. dxe5
{[%clk 0:02:47.3]} 8... Bxe5 {[%clk 0:02:47.8]} 9. Nxe5 {[%clk 0:02:26.7]} 9...
Qxe5 {[%clk 0:02:48.7]} 10. f4 {[%clk 0:02:26.3]} 10... Qc5+ {[%clk 0:02:48.5]}
11. Kh1 {[%clk 0:02:25]} 11... O-O {[%clk 0:02:47.5]} 12. Qe2 {[%clk 0:02:20.2]}
12... d5 {[%clk 0:02:38.4]} 13. e5 {[%clk 0:02:15.2]} 13... Ne4 {[%clk
0:02:37.7]} 14. Nxe4 {[%clk 0:02:14.6]} 14... dxe4 {[%clk 0:02:38.6]} 15. Be3
{[%clk 0:02:11.9]} 15... Qe7 {[%clk 0:02:38.5]} 16. f5 {[%clk 0:01:45.2]} 16...
Qxe5 {[%clk 0:02:33.7]} 17. c3 {[%clk 0:01:33]} 17... Bxf5 {[%clk 0:02:20.2]}
18. Bd4 {[%clk 0:01:31]} 18... Qe6 {[%clk 0:02:19.4]} 19. Bc4 {[%clk 0:01:26.5]}
19... Qc8 {[%clk 0:02:18.9]} 20. Qh5 {[%clk 0:00:52.2]} 20... Be6 {[%clk
0:02:13.2]} 21. Qe5 {[%clk 0:00:35.6]} 21... f6 {[%clk 0:02:02]} 22. Bxe6+
{[%clk 0:00:28.6]} 22... Kh8 {[%clk 0:02:01.6]} 23. Bxc8 {[%clk 0:00:29.2]}
23... Rxc8 {[%clk 0:02:00.4]} 24. Qe6 {[%clk 0:00:25.4]} 24... Nc6 {[%clk
0:01:58.8]} 25. Bxf6 {[%clk 0:00:25.1]} 25... Rf8 {[%clk 0:01:56.8]} 26. Bd4
{[%clk 0:00:19.2]} 26... Rae8 {[%clk 0:01:53.5]} 27. Qd7 {[%clk 0:00:18.7]}
27... Rg8 {[%clk 0:01:49]} 28. Rf7 {[%clk 0:00:17.4]} 28... Nb8 {[%clk
0:01:47.5]} 29. Qxc7 {[%clk 0:00:17.4]} 29... Rc8 {[%clk 0:01:47.5]} 30. Qxb7
{[%clk 0:00:16.8]} 30... Nc6 {[%clk 0:01:44.2]} 31. Bxg7+ {[%clk 0:00:16.4]}
31... Kh7 {[%clk 0:01:44.2]} 32. Bf6+ {[%clk 0:00:16.2]} 32... Kg6 {[%clk
0:01:44.7]} 33. Bd4 {[%clk 0:00:15]} 33... Nxd4 {[%clk 0:01:44.1]} 34. cxd4
{[%clk 0:00:14.7]} 34... Kh5 {[%clk 0:01:43.9]} 35. Qd5+ {[%clk 0:00:12.5]}
35... Rg5 {[%clk 0:01:43.6]} 36. Qxe4 {[%clk 0:00:12]} 36... Rcg8 {[%clk
0:01:43]} 37. g4+ {[%clk 0:00:11.7]} 37... Kh4 {[%clk 0:01:43.2]} 38. Rf6 {[%clk
0:00:12]} 38... Kxh3 {[%clk 0:01:40]} 39. Qf3+ {[%clk 0:00:11.9]} 39... Kh4
{[%clk 0:01:39.6]} 40. Rxh6+ {[%clk 0:00:12.5]} 40... Rh5 {[%clk 0:01:38.7]} 41.
Rxh5# {[%clk 0:00:13.2]} 1-0

[Event "Late-Titled-Tuesday-Blitz-September-12-2023"]
[Site "Chess.com"]
[Date "2023.09.12"]
[Round "8"]
[White "tteshan"]
[Black "F-Ghaith2021"]
[Result "0-1"]
[WhiteElo "2522"]
[BlackElo "2390"]
[TimeControl "180+1"]
[EndTime "15:21:58 PDT"]
[Termination "F-Ghaith2021 won by resignation"]

1. e4 {[%clk 0:03:00.9]} 1... c6 {[%clk 0:02:59.5]} 2. d4 {[%clk 0:03:00.8]}
2... d5 {[%clk 0:02:57.9]} 3. Nc3 {[%clk 0:03:01.5]} 3... dxe4 {[%clk 0:02:57]}
4. Nxe4 {[%clk 0:03:02.4]} 4... Nf6 {[%clk 0:02:57.5]} 5. Nxf6+ {[%clk 0:03:03]}
5... exf6 {[%clk 0:02:58.4]} 6. c3 {[%clk 0:03:03.5]} 6... Bd6 {[%clk
0:02:56.4]} 7. Bd3 {[%clk 0:03:04.2]} 7... O-O {[%clk 0:02:56.6]} 8. Ne2 {[%clk
0:03:04.9]} 8... Nd7 {[%clk 0:02:56]} 9. O-O {[%clk 0:03:05.3]} 9... Re8 {[%clk
0:02:56.5]} 10. Ng3 {[%clk 0:03:06]} 10... Nf8 {[%clk 0:02:57]} 11. f4 {[%clk
0:03:06.1]} 11... c5 {[%clk 0:02:56.6]} 12. d5 {[%clk 0:03:05.7]} 12... Ng6
{[%clk 0:02:49.5]} 13. f5 {[%clk 0:03:01.5]} 13... Ne5 {[%clk 0:02:49.2]} 14.
Bc2 {[%clk 0:02:59.1]} 14... c4 {[%clk 0:02:48.2]} 15. Nh5 {[%clk 0:02:57.1]}
15... b5 {[%clk 0:02:36.6]} 16. Bf4 {[%clk 0:02:49.2]} 16... g5 {[%clk
0:02:09.5]} 17. fxg6 {[%clk 0:02:41.1]} 17... hxg6 {[%clk 0:02:08.9]} 18. Bxe5
{[%clk 0:02:28.7]} 18... Bxe5 {[%clk 0:02:09.8]} 19. Ng3 {[%clk 0:02:15.5]}
19... Kg7 {[%clk 0:02:03.7]} 20. Qf3 {[%clk 0:02:12.3]} 20... Rh8 {[%clk
0:02:02.9]} 21. Rad1 {[%clk 0:02:06.5]} 21... Qb6+ {[%clk 0:02:01.7]} 22. Qf2
{[%clk 0:01:57.4]} 22... Qc7 {[%clk 0:01:46.1]} 23. d6 {[%clk 0:01:46.9]} 23...
Qd8 {[%clk 0:01:41.2]} 24. Qc5 {[%clk 0:01:33.6]} 24... Bg4 {[%clk 0:01:38.2]}
25. Rd2 {[%clk 0:01:19.6]} 25... Rxh2 {[%clk 0:01:37.5]} 26. Ne4 {[%clk
0:00:38.4]} 26... Qh8 {[%clk 0:01:34.1]} 27. d7 {[%clk 0:00:22.8]} 27... Qh4
{[%clk 0:01:28.7]} 28. Nf2 {[%clk 0:00:15.2]} 28... Rxg2+ {[%clk 0:01:22.5]} 29.
Kxg2 {[%clk 0:00:13.9]} 29... Qg3+ {[%clk 0:01:22.6]} 30. Kh1 {[%clk 0:00:11.2]}
30... Rh8+ {[%clk 0:01:18.8]} 0-1